[Event "EYCC 2017"]
[Site "Mamaia"]
[Date "2017.09.13"]
[Round "8"]
[White "Giang, Tran Nam"]
[Black "Royal, Shreyas"]
[Result "1-0"]
[ECO "B76"]
[WhiteElo "1561"]
[BlackElo "1700"]
[Annotator "NA RC"]
[PlyCount "119"]
[EventDate "2017.??.??"]
[EventType "swiss"]
[EventCountry "ROU"]
[SourceTitle "playchess.com"]
[Source "ChessBase"]
[SourceQuality "1"]
[TimeControl "40/5400+30:1800+30"]

1. e4 c5 2. Nf3 d6 3. d4 cxd4 4. Nxd4 Nf6 5. Nc3 g6 6. Be3 Bg7 7. f3 O-O 8. Qd2 Nc6 9. O-O-O d5 10. Kb1 dxe4 11. Nxc6 Qxd2 12. Nxe7+ Kh8 13. Rxd2 exf3 14. gxf3 Re8 15. Ned5 Nxd5 16. Nxd5 Bf5 17. Bf2 Rad8 18. Bc4 a6 19. Bb6 Rd6 20. Rdd1 Be6 21. Ba5 Rc8 22. Bb3 Bxd5 23. Bxd5 Rd7 24. Bb3 Re7 25. Rhe1 Rxe1 26. Rxe1 Kg8 27. Re7 Rb8 28. Bxf7+ Kh8 29. Re8+ Rxe8 30. Bxe8 Bd4 31. Bc3 Bxc3 32. bxc3 Kg7 33. Kb2 Kf6 34. Bd7 Ke5 35. Bc8 b6 36. Bxa6 Kf4 37. Bb7 Ke3 38. Be4 Kf2 39. h4 Kg3 40. h5 gxh5 41. Bxh7 h4 42. Bf5 Kxf3 43. Kb3 Kg3 44. Kb4 h3 45. Bxh3 Kxh3 46. Kb5 Kg4 47. Kxb6 Kf4 48. c4 Ke5 49. c5 Ke6 50. c6 Ke7 51. c7 Kd7 52. Kb7 Kd6 53. c8=Q Kd5 54. Qc3 Ke4 55. Kc6 Kf4 56. Kd5 Kg4 57. Ke5 Kg5 58. Qg3+ Kh6 59. Kf6 Kh7 60. Qg7# 1-0

[Event "EYCC 2017"]
[Site "Mamaia"]
[Date "2017.09.13"]
[Round "8"]
[White "Fedorova, Olesya"]
[Black "Svergina, Sofya"]
[Result "0-1"]
[ECO "A46"]
[WhiteElo "1534"]
[BlackElo "1472"]
[Annotator "NA RC"]
[PlyCount "64"]
[EventDate "2017.??.??"]
[EventType "swiss"]
[EventCountry "ROU"]
[SourceTitle "playchess.com"]
[Source "ChessBase"]
[SourceQuality "1"]
[TimeControl "40/5400+30:1800+30"]

1. Nf3 Nf6 2. d4 e6 3. Bg5 d5 4. Nbd2 c5 5. e3 Nc6 6. c3 b6 7. Bd3 h6 8. Bh4 Be7 9. Ne5 Nxe5 10. dxe5 Nd7 11. Bxe7 Qxe7 12. f4 Bb7 13. O-O O-O 14. e4 dxe4 15. Bxe4 Bxe4 16. Nxe4 f6 17. exf6 Nxf6 18. Qe2 Rae8 19. c4 Nd5 20. Qd2 Nf6 21. Nxf6+ Qxf6 22. Rae1 Rd8 23. Qe2 Rfe8 24. b3 Qd4+ 25. Qf2 Kf7 26. g3 Rd6 27. Qxd4 Rxd4 28. Rd1 Red8 29. Rxd4 Rxd4 30. Rf2 Kf6 31. Kg2 Kf5 32. Re2 g5 0-1

[Event "EYCC 2017"]
[Site "Mamaia"]
[Date "2017.09.13"]
[Round "8"]
[White "Markus, Molli Amina"]
[Black "Mustu, Hatice Asli"]
[Result "1/2-1/2"]
[ECO "E19"]
[WhiteElo "1520"]
[BlackElo "1365"]
[Annotator "NA RC"]
[PlyCount "96"]
[EventDate "2017.??.??"]
[EventType "swiss"]
[EventCountry "ROU"]
[SourceTitle "playchess.com"]
[Source "ChessBase"]
[SourceQuality "1"]
[TimeControl "40/5400+30:1800+30"]

1. d4 {[%emt 0:00:34]} Nf6 {[%emt 0:00:11]} 2. Nf3 {[%emt 0:02:12]} e6 {[%emt 0:03:51]} 3. g3 {[%emt 0:02:32]} b6 {[%emt 0:00:08]} 4. Bg2 {[%emt 0:01:54]} Bb7 {[%emt 0:00:46]} 5. O-O {[%emt 0:01:53]} Be7 {[%emt 0:00:33]} 6. c4 {[%emt 0:02:39]} O-O {[%emt 0:04:04]} 7. Nc3 {[%emt 0:02:50]} Ne4 {[%emt 0:03:38]} 8. Qc2 {[%emt 0:05:31]} Nxc3 {[%emt 0:04:13]} 9. Qxc3 {[%emt 0:00:54]} f5 {[%emt 0:02:11]} 10. Bf4 {[%emt 0:02:57]} Bf6 {[%emt 0:05:43]} 11. Qd2 {[%emt 0:04:29]} Nc6 {[%emt 0:03:12]} 12. d5 {[%emt 0:04:52]} Na5 {[%emt 0:10:36]} 13. Rac1 {[%emt 0:06:33]} Ba6 {[%emt 0:07:23]} 14. b3 {[%emt 0:01:27]} Rc8 {[%emt 0:02:44]} 15. Qd3 {[%emt 0:07:12]} Qe7 {[%emt 0:02:14]} 16. d6 {[%emt 0:01:18]} Qe8 {[%emt 0:05:36]} 17. dxc7 {[%emt 0:00:53]} Nc6 {[%emt 0:05:43]} 18. Bd6 {[%emt 0:08:38]} Rf7 {[%emt 0:03:23]} 19. b4 {[%emt 0:02:54]} Bb7 {[%emt 0:07:57]} 20. b5 {[%emt 0:07:38]} Ne7 {[%emt 0:00:30]} 21. Rfd1 {[%emt 0:01:05]} Bb2 {[%emt 0:01:18]} 22. Ne5 {[%emt 0:02:15]} Bxg2 {[%emt 0:07:14]} 23. Kxg2 {[%emt 0:00:55]} Bxe5 {[%emt 0:02:26]} 24. Bxe5 {[%emt 0:00:14]} Ng6 {[%emt 0:00:17]} 25. Qd6 {[%emt 0:01:59]} Nxe5 {[%emt 0:01:57]} 26. Qxe5 {[%emt 0:00:12]} Qe7 {[%emt 0:05:15]} 27. c5 {[%emt 0:04:26]} bxc5 {[%emt 0:00:39]} 28. Qxc5 {[%emt 0:01:18]} Qxc5 {[%emt 0:00:47]} 29. Rxc5 {[%emt 0:00:06]} Re7 {[%emt 0:01:29]} 30. a4 {[%emt 0:00:44]} Kf7 {[%emt 0:01:42]} 31. a5 {[%emt 0:00:25]} d6 {[%emt 0:00:13]} 32. Rxd6 {[%emt 0:00:16]} Rcxc7 {[%emt 0:00:25]} 33. Rxc7 {[%emt 0:00:47]} Rxc7 {[%emt 0:00:05]} 34. b6 {[%emt 0:00:36]} axb6 {[%emt 0:00:14]} 35. Rxb6 {[%emt 0:00:14]} Ra7 {[%emt 0:00:09]} 36. a6 {[%emt 0:00:09]} Kf6 {[%emt 0:00:20]} 37. f4 {[%emt 0:00:12]} h6 {[%emt 0:00:18]} 38. h4 {[%emt 0:00:33]} h5 {[%emt 0:00:18]} 39. Kf3 {[%emt 0:00:09]} g6 {[%emt 0:00:15]} 40. e3 {[%emt 0:00:00]} Rc7 {[%emt 0:01:09]} 41. Rb7 {[%emt 0:00:28]} Rc2 {[%emt 0:00:13]} 42. Rb8 {[%emt 0:00:39]} Ra2 {[%emt 0:00:13]} 43. Ra8 {[%emt 0:00:05]} Kf7 {[%emt 0:00:37]} 44. a7 {[%emt 0:00:09]} Kg7 {[%emt 0:01:05]} 45. Re8 {[%emt 0:01:03]} Rxa7 {[%emt 0:00:10]} 46. Rxe6 {[%emt 0:00:07]} Ra3 {[%emt 0:00:15]} 47. Kg2 {[%emt 0:01:12]} Ra2+ {[%emt 0:00:24]} 48. Kh3 {[%emt 0:00:08]} Re2 {[%emt 0:00:10]} 1/2-1/2

[Event "EYCC 2017"]
[Site "Mamaia"]
[Date "2017.09.13"]
[Round "8"]
[White "Shubenkova, Veronika"]
[Black "Mikheeva, Galina"]
[Result "1/2-1/2"]
[ECO "A80"]
[WhiteElo "1505"]
[BlackElo "1596"]
[Annotator "NA RC"]
[PlyCount "89"]
[EventDate "2017.??.??"]
[EventType "swiss"]
[EventCountry "ROU"]
[SourceTitle "playchess.com"]
[Source "ChessBase"]
[SourceQuality "1"]
[TimeControl "40/5400+30:1800+30"]

1. d4 {[%emt 0:00:14]} f5 {[%emt 0:00:18]} 2. e3 {[%emt 0:05:59]} Nf6 {[%emt 0:06:41]} 3. Bd3 {[%emt 0:04:12]} g6 {[%emt 0:10:02]} 4. Nf3 {[%emt 0:09:35]} Bg7 {[%emt 0:01:13]} 5. O-O {[%emt 0:08:12]} e6 {[%emt 0:12:54]} 6. c3 {[%emt 0:06:06]} O-O {[%emt 0:02:45]} 7. Nbd2 {[%emt 0:01:36]} d6 {[%emt 0:20:52]} 8. e4 {[%emt 0:11:10]} Nh5 {[%emt 0:08:28]} 9. exf5 {[%emt 0:04:03]} gxf5 {[%emt 0:00:46]} 10. Nc4 {[%emt 0:06:42]} Qe8 {[%emt 0:06:35]} 11. Re1 {[%emt 0:03:41]} Qg6 {[%emt 0:02:42]} 12. Nh4 {[%emt 0:05:24]} Qf7 {[%emt 0:00:13]} 13. Bg5 h6 {[%emt 0:03:04]} 14. Bd2 {[%emt 0:09:31]} Nf6 {[%emt 0:02:09]} 15. Qe2 {[%emt 0:03:14]} Nd5 {[%emt 0:02:44]} 16. Qf3 {[%emt 0:03:36]} Nc6 {[%emt 0:02:11]} 17. Be2 {[%emt 0:01:14]} Kh7 {[%emt 0:02:00]} 18. Ne3 {[%emt 0:01:18]} Nde7 {[%emt 0:02:29]} 19. Qh5 {[%emt 0:01:11]} Qxh5 {[%emt 0:01:18]} 20. Bxh5 {[%emt 0:00:03]} Bf6 {[%emt 0:00:13]} 21. Nf3 {[%emt 0:00:52]} e5 {[%emt 0:04:34]} 22. dxe5 {[%emt 0:00:37]} dxe5 {[%emt 0:00:18]} 23. Kf1 {[%emt 0:02:29]} Be6 {[%emt 0:02:14]} 24. Ng1 {[%emt 0:02:10]} Rad8 {[%emt 0:00:25]} 25. Red1 {[%emt 0:00:39]} Bg5 {[%emt 0:02:01]} 26. Nf3 {[%emt 0:02:06]} Bf6 {[%emt 0:00:25]} 27. Ng1 {[%emt 0:00:04]} f4 {[%emt 0:00:38]} 28. Nc2 {[%emt 0:00:44]} Bf5 {[%emt 0:00:59]} 29. Rac1 {[%emt 0:00:32]} Bg5 {[%emt 0:00:39]} 30. Nf3 {[%emt 0:01:10]} Bf6 {[%emt 0:01:26]} 31. Ng1 {[%emt 0:00:20]} Bg5 {[%emt 0:00:06]} 32. Nf3 {[%emt 0:00:04]} Bd3+ {[%emt 0:00:14]} 33. Ke1 {[%emt 0:00:56]} Nf5 {[%emt 0:01:52]} 34. Bg4 {[%emt 0:01:46]} Ng7 {[%emt 0:00:21]} 35. Nb4 {[%emt 0:01:02]} Bf6 {[%emt 0:01:02]} 36. Nxd3 {[%emt 0:01:12]} Rxd3 {[%emt 0:00:09]} 37. Ke2 {[%emt 0:00:24]} Rfd8 {[%emt 0:00:35]} 38. Ne1 {[%emt 0:01:20]} R3d6 39. Bf3 {[%emt 0:00:16]} Ne6 {[%emt 0:01:21]} 40. Be4+ {[%emt 0:00:00]} Kg7 {[%emt 0:00:08]} 41. f3 {[%emt 0:07:30]} Kf7 {[%emt 0:12:13]} 42. Nc2 {[%emt 0:04:30]} Nc5 {[%emt 0:01:27]} 43. Be1 {[%emt 0:03:14]} Bg5 {[%emt 0:04:20]} 44. Bxc6 {[%emt 0:02:42]} bxc6 {[%emt 0:00:07]} 45. Nb4 1/2-1/2

[Event "EYCC 2017"]
[Site "Mamaia"]
[Date "2017.09.13"]
[Round "8"]
[White "Zavivaeva, Evelina"]
[Black "Kusakina, Uliana"]
[Result "1-0"]
[ECO "C54"]
[WhiteElo "1406"]
[BlackElo "1157"]
[Annotator "NA RC"]
[PlyCount "123"]
[EventDate "2017.??.??"]
[EventType "swiss"]
[EventCountry "ROU"]
[SourceTitle "playchess.com"]
[Source "ChessBase"]
[SourceQuality "1"]
[TimeControl "40/5400+30:1800+30"]

1. e4 {[%emt 0:00:00]} e5 {[%emt 0:00:07]} 2. Nf3 {[%emt 0:00:00]} Nc6 {[%emt 0:00:09]} 3. Bc4 {[%emt 0:00:00]} Bc5 {[%emt 0:00:09]} 4. c3 {[%emt 0:00:01]} Nf6 {[%emt 0:00:06]} 5. b4 {[%emt 0:00:23]} Bb6 {[%emt 0:00:35]} 6. d3 {[%emt 0:00:21]} d6 {[%emt 0:00:45]} 7. O-O {[%emt 0:00:19]} Ne7 {[%emt 0:00:19]} 8. Nbd2 {[%emt 0:00:31]} Ng6 {[%emt 0:00:32]} 9. Bb3 {[%emt 0:02:37]} O-O {[%emt 0:01:16]} 10. a4 {[%emt 0:02:02]} c6 {[%emt 0:04:46]} 11. Nc4 {[%emt 0:00:53]} Be6 {[%emt 0:02:30]} 12. Bg5 {[%emt 0:01:47]} Bxc4 {[%emt 0:00:47]} 13. Bxc4 {[%emt 0:00:23]} d5 {[%emt 0:02:58]} 14. exd5 {[%emt 0:04:50]} cxd5 {[%emt 0:00:09]} 15. Bxf6 {[%emt 0:00:52]} gxf6 {[%emt 0:00:09]} 16. Bb3 {[%emt 0:00:58]} Kh8 {[%emt 0:00:33]} 17. Qd2 {[%emt 0:03:10]} Rg8 {[%emt 0:03:45]} 18. Kh1 {[%emt 0:05:27]} Qd7 {[%emt 0:02:44]} 19. Qh6 {[%emt 0:09:22]} Rad8 {[%emt 0:04:41]} 20. a5 {[%emt 0:05:22]} Bc7 {[%emt 0:01:42]} 21. a6 {[%emt 0:01:07]} b6 {[%emt 0:00:26]} 22. c4 {[%emt 0:05:11]} d4 {[%emt 0:02:51]} 23. Rfe1 {[%emt 0:07:37]} Qe6 {[%emt 0:05:55]} 24. g3 {[%emt 0:17:50]} Qf5 {[%emt 0:11:09]} 25. Nh4 {[%emt 0:12:50]} Qxd3 {[%emt 0:04:18]} 26. Rab1 {[%emt 0:02:29]} f5 {[%emt 0:05:02]} 27. Red1 {[%emt 0:07:50]} Qe4+ {[%emt 0:02:00]} 28. Ng2 {[%emt 0:01:49]} Nf4 {[%emt 0:04:16]} 29. f3 {[%emt 0:05:04]} Qxf3 {[%emt 0:01:26]} 30. Rd2 {[%emt 0:00:55]} Nxg2 {[%emt 0:01:03]} 31. Rxg2 {[%emt 0:00:30]} Rg6 {[%emt 0:01:24]} 32. Qd2 {[%emt 0:00:45]} Rdg8 {[%emt 0:02:47]} 33. Qf2 {[%emt 0:01:21]} Qxf2 {[%emt 0:04:27]} 34. Rxf2 {[%emt 0:00:08]} Rf6 {[%emt 0:00:30]} 35. Rbf1 {[%emt 0:00:57]} f4 {[%emt 0:01:16]} 36. Bc2 {[%emt 0:00:41]} Rd8 {[%emt 0:01:08]} 37. Bd3 {[%emt 0:00:33]} Re8 {[%emt 0:03:11]} 38. Be4 {[%emt 0:00:45]} Kg7 {[%emt 0:00:45]} 39. Kg2 {[%emt 0:00:27]} Bd6 {[%emt 0:01:49]} 40. b5 {[%emt 0:00:00]} Rg8 {[%emt 0:02:07]} 41. Rf3 {[%emt 0:02:41]} Kh8 {[%emt 0:03:55]} 42. h4 {[%emt 0:04:36]} Rh6 {[%emt 0:02:43]} 43. Kh3 {[%emt 0:00:51]} f6 {[%emt 0:00:46]} 44. g4 {[%emt 0:04:41]} Be7 {[%emt 0:02:52]} 45. h5 {[%emt 0:01:15]} Rc8 {[%emt 0:01:35]} 46. Rc1 {[%emt 0:01:06]} Bb4 {[%emt 0:00:48]} 47. Kh4 {[%emt 0:03:37]} Bd2 {[%emt 0:03:55]} 48. Rc2 {[%emt 0:00:43]} Be1+ {[%emt 0:00:10]} 49. Kh3 {[%emt 0:00:15]} Bg3 {[%emt 0:00:23]} 50. Rc1 {[%emt 0:01:23]} Rg8 {[%emt 0:00:50]} 51. c5 {[%emt 0:01:53]} Rc8 {[%emt 0:00:16]} 52. cxb6 {[%emt 0:02:04]} Rxc1 {[%emt 0:04:38]} 53. b7 {[%emt 0:00:53]} Rh1+ {[%emt 0:00:17]} 54. Kg2 {[%emt 0:00:17]} Rh2+ {[%emt 0:00:18]} 55. Kg1 {[%emt 0:00:15]} Rh1+ {[%emt 0:02:09]} 56. Kxh1 {[%emt 0:00:40]} Rxh5+ {[%emt 0:01:32]} 57. gxh5 {[%emt 0:00:28]} Kg7 {[%emt 0:00:04]} 58. b8=Q {[%emt 0:00:28]} Kh6 {[%emt 0:00:10]} 59. Qc7 {[%emt 0:00:29]} Kg5 {[%emt 0:00:23]} 60. Qxh7 {[%emt 0:00:29]} Kh4 {[%emt 0:00:06]} 61. Qf5 {[%emt 0:00:47]} Be1 {[%emt 0:01:45]} 62. Rh3# {[%emt 0:00:13]} 1-0

[Event "EYCC 2017"]
[Site "Mamaia"]
[Date "2017.09.13"]
[Round "8"]
[White "Bartodziej, Bartosz"]
[Black "Ljepic, Andrej"]
[Result "0-1"]
[ECO "D35"]
[WhiteElo "1402"]
[BlackElo "1616"]
[Annotator "NA RC"]
[PlyCount "88"]
[EventDate "2017.??.??"]
[EventType "swiss"]
[EventCountry "ROU"]
[SourceTitle "playchess.com"]
[Source "ChessBase"]
[SourceQuality "1"]
[TimeControl "40/5400+30:1800+30"]

1. d4 {[%emt 0:00:00]} e6 {[%emt 0:00:15]} 2. c4 {[%emt 0:00:32]} d5 {[%emt 0:00:15]} 3. Nc3 {[%emt 0:01:10]} Nf6 {[%emt 0:00:18]} 4. cxd5 {[%emt 0:01:03]} exd5 {[%emt 0:00:15]} 5. Bg5 {[%emt 0:01:24]} Nbd7 {[%emt 0:00:33]} 6. e3 {[%emt 0:01:32]} Be7 {[%emt 0:00:34]} 7. Bd3 {[%emt 0:02:25]} c6 {[%emt 0:01:28]} 8. Nf3 {[%emt 0:01:19]} O-O {[%emt 0:00:30]} 9. O-O {[%emt 0:01:01]} Re8 {[%emt 0:01:31]} 10. Qc2 {[%emt 0:01:11]} h6 {[%emt 0:03:21]} 11. Bh4 {[%emt 0:00:50]} Ne4 {[%emt 0:01:41]} 12. Bxe4 {[%emt 0:02:35]} dxe4 {[%emt 0:00:48]} 13. Qxe4 {[%emt 0:05:32]} Bf6 {[%emt 0:04:42]} 14. Bxf6 {[%emt 0:05:05]} Nxf6 {[%emt 0:00:17]} 15. Qc2 {[%emt 0:02:24]} Be6 {[%emt 0:06:10]} 16. Rac1 {[%emt 0:09:22]} Qa5 {[%emt 0:06:46]} 17. Rfe1 {[%emt 0:04:53]} Bf5 {[%emt 0:03:37]} 18. Qd2 {[%emt 0:03:49]} Qb6 {[%emt 0:01:06]} 19. h3 {[%emt 0:09:59]} Rad8 {[%emt 0:00:57]} 20. Na4 {[%emt 0:03:55]} Qa6 {[%emt 0:06:10]} 21. Nc3 {[%emt 0:03:56]} Nd7 {[%emt 0:05:38]} 22. Qe2 {[%emt 0:03:25]} Bd3 {[%emt 0:03:20]} 23. Qd1 {[%emt 0:01:46]} c5 {[%emt 0:04:01]} 24. Qa4 {[%emt 0:03:40]} Qg6 {[%emt 0:01:38]} 25. Qxa7 {[%emt 0:03:42]} Ba6 {[%emt 0:00:21]} 26. Ne5 {[%emt 0:03:39]} Nxe5 {[%emt 0:04:34]} 27. dxe5 {[%emt 0:00:47]} Rxe5 {[%emt 0:02:56]} 28. Red1 {[%emt 0:03:15]} Rxd1+ {[%emt 0:03:49]} 29. Rxd1 {[%emt 0:00:11]} Rg5 {[%emt 0:00:24]} 30. Qb8+ {[%emt 0:00:36]} Kh7 {[%emt 0:00:15]} 31. g3 {[%emt 0:04:41]} Qc2 {[%emt 0:02:11]} 32. Qd6 {[%emt 0:04:23]} Qxb2 {[%emt 0:09:46]} 33. Qd2 {[%emt 0:00:52]} Qxd2 {[%emt 0:01:40]} 34. Rxd2 {[%emt 0:00:10]} b5 {[%emt 0:05:52]} 35. Rc2 {[%emt 0:01:50]} Re5 {[%emt 0:03:28]} 36. Kg2 {[%emt 0:01:21]} Bb7+ {[%emt 0:01:47]} 37. Kh2 {[%emt 0:01:08]} Ba6 {[%emt 0:00:28]} 38. g4 {[%emt 0:00:25]} b4 {[%emt 0:01:57]} 39. Na4 {[%emt 0:03:39]} c4 {[%emt 0:02:26]} 40. Nb6 {[%emt 0:00:00]} c3 {[%emt 0:01:20]} 41. Nd7 {[%emt 0:07:30]} Rd5 {[%emt 0:00:22]} 42. Nb6 {[%emt 0:04:29]} Rd2 {[%emt 0:00:21]} 43. Nd5 {[%emt 0:01:29]} Rxc2 {[%emt 0:00:15]} 44. Nxb4 {[%emt 0:00:11]} Rb2 {[%emt 0:00:22]} 0-1

[Event "EYCC 2017"]
[Site "Mamaia"]
[Date "2017.09.13"]
[Round "8"]
[White "Zubkovskaya, Ekaterina"]
[Black "Kirtadze, Anastasia"]
[Result "0-1"]
[ECO "B31"]
[WhiteElo "1399"]
[BlackElo "1193"]
[Annotator "NA RC"]
[PlyCount "86"]
[EventDate "2017.??.??"]
[EventType "swiss"]
[EventCountry "ROU"]
[SourceTitle "playchess.com"]
[Source "ChessBase"]
[SourceQuality "1"]
[TimeControl "40/5400+30:1800+30"]

1. e4 {[%emt 0:00:00]} c5 {[%emt 0:00:08]} 2. Nf3 {[%emt 0:00:00]} Nc6 {[%emt 0:00:19]} 3. Bb5 {[%emt 0:00:00]} g6 {[%emt 0:01:24]} 4. O-O {[%emt 0:01:06]} Bg7 {[%emt 0:00:17]} 5. Re1 {[%emt 0:00:33]} Ne5 {[%emt 0:00:57]} 6. Nc3 {[%emt 0:00:35]} e6 {[%emt 0:04:07]} 7. Be2 {[%emt 0:00:46]} a6 {[%emt 0:03:04]} 8. d3 {[%emt 0:00:14]} Nxf3+ {[%emt 0:04:37]} 9. Bxf3 {[%emt 0:00:19]} d6 {[%emt 0:01:47]} 10. Be3 {[%emt 0:00:54]} e5 {[%emt 0:03:43]} 11. Nd5 {[%emt 0:05:30]} Be6 {[%emt 0:02:04]} 12. c3 {[%emt 0:02:18]} Bxd5 {[%emt 0:04:50]} 13. exd5 {[%emt 0:02:10]} f5 {[%emt 0:04:54]} 14. d4 {[%emt 0:00:20]} e4 {[%emt 0:00:48]} 15. Be2 {[%emt 0:07:57]} b6 {[%emt 0:01:02]} 16. f3 {[%emt 0:05:02]} Ne7 {[%emt 0:01:47]} 17. Bg5 {[%emt 0:05:10]} O-O {[%emt 0:00:48]} 18. fxe4 {[%emt 0:00:46]} fxe4 {[%emt 0:00:10]} 19. Bg4 {[%emt 0:05:35]} h6 {[%emt 0:01:40]} 20. Be3 {[%emt 0:01:29]} Nf5 {[%emt 0:00:27]} 21. dxc5 {[%emt 0:01:36]} bxc5 {[%emt 0:00:19]} 22. Qe2 {[%emt 0:00:59]} Qe7 {[%emt 0:01:26]} 23. Rf1 {[%emt 0:03:08]} Kh7 {[%emt 0:10:44]} 24. Bxf5 {[%emt 0:00:29]} gxf5 {[%emt 0:00:30]} 25. Rf2 {[%emt 0:00:33]} Rf7 {[%emt 0:00:42]} 26. Raf1 {[%emt 0:00:20]} Raf8 {[%emt 0:00:52]} 27. Qxa6 {[%emt 0:00:56]} Be5 {[%emt 0:00:13]} 28. Bf4 {[%emt 0:01:10]} Bxf4 {[%emt 0:00:05]} 29. Rxf4 {[%emt 0:00:13]} e3 {[%emt 0:01:10]} 30. Qe2 {[%emt 0:00:12]} Qe5 {[%emt 0:00:25]} 31. R4f3 {[%emt 0:00:34]} Re7 {[%emt 0:00:54]} 32. Re1 {[%emt 0:01:57]} f4 {[%emt 0:00:41]} 33. Qd3+ {[%emt 0:00:35]} Kh8 {[%emt 0:02:26]} 34. Rh3 {[%emt 0:00:51]} Rf6 {[%emt 0:00:47]} 35. b4 {[%emt 0:04:23]} cxb4 {[%emt 0:05:42]} 36. cxb4 {[%emt 0:00:18]} Rg7 {[%emt 0:01:22]} 37. Kh1 {[%emt 0:16:59]} Qg5 {[%emt 0:07:27]} 38. Qe2 {[%emt 0:03:09]} Qxd5 {[%emt 0:03:06]} 39. Rf3 {[%emt 0:02:36]} Qe4 {[%emt 0:03:43]} 40. b5 {[%emt 0:00:00]} d5 {[%emt 0:01:46]} 41. a4 {[%emt 0:13:40]} Qxa4 {[%emt 0:09:55]} 42. Qd3 {[%emt 0:01:37]} Qa2 {[%emt 0:20:29]} 43. Qc3 {[%emt 0:00:45]} Qxg2# {[%emt 0:00:51]} 0-1

[Event "EYCC 2017"]
[Site "Mamaia"]
[Date "2017.09.13"]
[Round "8"]
[White "Abbasova, Zarifa"]
[Black "Keskinler, Ela"]
[Result "0-1"]
[ECO "C50"]
[WhiteElo "1083"]
[BlackElo "1276"]
[Annotator "NA RC"]
[PlyCount "32"]
[EventDate "2017.??.??"]
[EventType "swiss"]
[EventCountry "ROU"]
[SourceTitle "playchess.com"]
[Source "ChessBase"]
[SourceQuality "1"]
[TimeControl "40/5400+30:1800+30"]

1. e4 {[%emt 0:00:00]} e5 {[%emt 0:00:13]} 2. Nf3 {[%emt 0:00:00]} Nc6 {[%emt 0:00:17]} 3. Bc4 {[%emt 0:00:00]} Bc5 {[%emt 0:00:21]} 4. O-O {[%emt 0:00:04]} Nf6 {[%emt 0:00:03]} 5. d3 {[%emt 0:00:12]} d6 {[%emt 0:00:18]} 6. h3 {[%emt 0:00:06]} h6 {[%emt 0:00:47]} 7. Re1 {[%emt 0:00:24]} Na5 {[%emt 0:01:36]} 8. Bb3 {[%emt 0:00:23]} Nxb3 {[%emt 0:00:07]} 9. axb3 {[%emt 0:00:10]} O-O {[%emt 0:00:33]} 10. Nbd2 {[%emt 0:00:41]} Nh5 {[%emt 0:04:33]} 11. Nxe5 {[%emt 0:12:58]} Qh4 {[%emt 0:00:11]} 12. d4 {[%emt 0:16:09]} Bxd4 {[%emt 0:02:45]} 13. Nef3 {[%emt 0:18:52]} Qxf2+ {[%emt 0:01:52]} 14. Kh1 {[%emt 0:10:45]} Bxh3 {[%emt 0:02:31]} 15. Re2 {[%emt 0:02:12]} Bxg2+ {[%emt 0:00:12]} 16. Kh2 {[%emt 0:33:47]} Qg3# {[%emt 0:00:08]} 0-1